[Event "Czech Championship 2022"]
[Site "Usti nad Labem"]
[Date "2022.05.16"]
[Round "3.14"]
[White "Hrbek, Stepan"]
[Black "Bouska, Jiri"]
[Result "1/2-1/2"]
[ECO "B38"]
[WhiteElo "2303"]
[BlackElo "2117"]
[Annotator "TA"]
[PlyCount "79"]
[EventDate "2022.05.12"]
[EventType "swiss"]
[EventCountry "CZE"]
[SourceTitle "playchess.com"]
[Source "ChessBase"]
[SourceQuality "1"]
[TimeControl "40/5400+30:1800+30"]

{[%evp 20,79,50,54,71,62,89,84,84,76,79,78,122,70,76,64,88,57,64,50,52,48,54,37,62,51,59,49,22,25,25,0,0,0,0,0,0,0,0,0,0,0,0,0,0,0,0,0,67,0,0,0,0,0,0,0,0,0,0,0,0,0]} 1. e4 {[%emt 0:00:23]} c5 {[%emt 0:00:10]} 2. Nf3 {[%emt 0:00:14]} Nc6 {[%emt 0:00:08]} 3. d4 {[%emt 0:00:25]} cxd4 {[%emt 0:00:08]} 4. Nxd4 {[%emt 0:00:09]} g6 {[%emt 0:00:05]} 5. c4 {[%emt 0:00:40]} Bg7 {[%emt 0:00:27]} 6. Be3 {[%emt 0:00:18]} Nf6 {[%emt 0:00:09]} 7. Nc3 {[%emt 0:00:17]} d6 {[%emt 0:00:41]} 8. f3 {[%emt 0:03:37]} O-O {[%emt 0:00:24]} 9. Qd2 {[%emt 0:00:25]} Bd7 {[%emt 0:00:37]} 10. Be2 {[%emt 0:00:14]} Nxd4 {[%emt 0:00:45]} 11. Bxd4 {[%emt 0:00:08]} Bc6 {[%emt 0:00:24] B38: Sicilian: Maroczy Bind with 5...Bg7 and 7...0-0.} 12. O-O-O {[%emt 0:00:14]} a6 {[%emt 0:05:06]} 13. Kb1 {[%emt 0:01:16]} b5 {[%emt 0:00:23] White is better.} 14. g4 {[%emt 0:00:38]} bxc4 {[%emt 0:11:22] [#]} 15. h4 $146 {[%emt 0:02:03]} ({Predecessor:} 15. Bxc4 Rb8 16. Bb3 a5 17. h4 Rb4 18. h5 Nxe4 19. Qe3 Rxd4 20. Rxd4 Bxd4 21. Qxd4 {0-1 (57) Stachanczyk,J (2137)-Pert,R (2416) Chess.com INT 2021}) 15... Qa5 {[%emt 0:23:16]} 16. g5 {[%emt 0:25:31]} (16. h5 $16 Rfc8 17. Bxc4) 16... Nh5 $14 {[%emt 0:05:08]} 17. Nd5 {[%emt 0:00:19]} Qd8 {[%emt 0:01:27]} 18. Bxg7 {[%emt 0:00:35] White is much more active. The black rooks are badly placed.} (18. Ne3 {seems wilder.} Bxd4 19. Qxd4 Ng3 20. Rh2) 18... Nxg7 {[%emt 0:00:40]} 19. Bxc4 {[%emt 0:05:18]} Bxd5 {[%emt 0:03:43]} 20. Bxd5 {[%emt 0:01:56]} Rb8 {[%emt 0:00:28]} 21. Rc1 {[%emt 0:18:02]} Rc8 {[%emt 0:14:45]} 22. Rxc8 {[%emt 0:06:49]} Qxc8 {[%emt 0:00:08]} 23. Qa5 {[%emt 0:00:07]} Nh5 {[%emt 0:02:38]} 24. Qb6 {[%emt 0:03:51]} Ng3 $1 {[%emt 0:04:34]} 25. Rc1 {[%emt 0:00:25]} Qh3 {[%emt 0:00:15]} 26. Qxa6 {[%emt 0:00:11]} Qxh4 {[%emt 0:00:48]} 27. Qb5 {[%emt 0:04:37]} Kg7 {[%emt 0:01:43]} 28. Bc4 $36 {[%emt 0:05:19][%mdl 2048] White has good play.} Qh5 {[%emt 0:04:34]} 29. Rc3 {[%emt 0:01:38]} e5 {[%emt 0:02:16]} 30. a4 {[%emt 0:03:51][%cal Ba2a4,Ba4a5,Ba5a6][%mdl 32] Hoping for a5.} Qxg5 {[%emt 0:00:18]} 31. a5 {[%emt 0:00:20] And now a6 would win.} h5 {[%emt 0:00:09]} 32. a6 {[%emt 0:00:24]} h4 {[%emt 0:00:19]} 33. Qd7 {[%emt 0:00:22] Black must now prevent a7.} Qh6 {[%emt 0:14:11]} (33... d5 $11 34. Bxd5 (34. Qxd5 h3 $11) 34... Ne2) 34. Be6 {[%emt 0:05:45]} ({Better is} 34. Rc2 $1 $14 h3 35. Rh2 (35. Qxd6 h2 $15)) 34... Ne2 {[%emt 0:01:02] The position is equal.} 35. Rc7 {[%emt 0:08:18][%cal Re6f7]} Qd2 {[%emt 0:01:31]} 36. Bxf7 {[%emt 0:00:12] [#] White wants to mate with Be8+.} Qe1+ {[%emt 0:00:28]} 37. Ka2 {[%emt 0:02:47]} Qa5+ {[%emt 0:00:14]} 38. Kb1 {[%emt 0:00:12] Threatens to win with Bc4+.} Qe1+ {[%emt 0:00:05]} 39. Ka2 {[%emt 0:00:29] Bc4+ is the strong threat. The board is on fire.} Qa5+ {[%emt 0:00:05]} 40. Kb1 {[%emt 0:01:16] Weighted Error Value: White=0.08 (flawless) /Black=0.08 (flawless)} 1/2-1/2

[Event "Czech Championship 2022"]
[Site "Usti nad Labem"]
[Date "2022.05.16"]
[Round "3.15"]
[White "Bartos, Jan"]
[Black "Serrano Salvador, Eduardo"]
[Result "0-1"]
[ECO "C41"]
[WhiteElo "2125"]
[BlackElo "2286"]
[Annotator "TA"]
[PlyCount "86"]
[EventDate "2022.05.12"]
[EventType "swiss"]
[EventCountry "CZE"]
[SourceTitle "playchess.com"]
[Source "ChessBase"]
[SourceQuality "1"]
[TimeControl "40/5400+30:1800+30"]

{[%evp 18,86,92,78,110,95,94,96,96,72,80,91,89,29,23,25,35,27,28,24,72,72,69,58,72,29,108,120,117,74,96,104,106,101,83,92,76,97,69,31,92,-71,0,-12,-11,-10,0,0,0,0,0,0,0,0,0,0,36,-264,-257,-257,-257,-789,-771,-809,-807,-886,-854,-1489,-1477,-6119,-2842]} 1. d4 {[%emt 0:01:33]} Nf6 {[%emt 0:00:09]} 2. Nf3 {[%emt 0:00:07]} d6 {[%emt 0:00:09]} 3. Nc3 {[%emt 0:00:57]} Nbd7 {[%emt 0:00:39]} 4. e4 {[%emt 0:00:12]} e5 {[%emt 0:00:06]} 5. Bc4 {[%emt 0:00:15]} Be7 {[%emt 0:00:16]} 6. O-O {[%emt 0:00:25]} O-O {[%emt 0:00:13]} 7. Re1 {[%emt 0:00:36]} c6 {[%emt 0:00:22]} 8. a4 {[%emt 0:00:15]} b6 {[%emt 0:00:30] 8...b6 has lost popularity.} 9. d5 {[%emt 0:02:03]} c5 {[%emt 0:02:44]} 10. a5 {[%emt 0:07:05]} Rb8 {[%emt 0:04:43] C41: Philidor Defence.} 11. axb6 {[%emt 0:04:33]} axb6 {[%emt 0:00:40] [#]} 12. Bd2 $146 {[%emt 0:05:37]} ({Predecessor:} 12. Bb5 Ne8 13. Nd2 Nc7 14. Nc4 Nxb5 15. Nxb5 Nf6 16. Bg5 Ne8 17. Bxe7 Qxe7 18. Ra7 {1-0 (35) Velicka,P (2408)-Brychta,D (2147) Chess.com INT 2021}) 12... Ne8 {[%emt 0:02:46] White is better.} 13. Nb5 {[%emt 0:01:29]} Nc7 {[%emt 0:03:55]} 14. Na7 {[%emt 0:01:45] Strongly threatening Nc6.} Bb7 {[%emt 0:00:26]} 15. Nc6 {[%emt 0:02:57]} (15. Qe2 $16) 15... Bxc6 $11 {[%emt 0:01:32]} 16. dxc6 {[%emt 0:00:05]} Nf6 {[%emt 0:00:50]} 17. b4 {[%emt 0:15:08]} b5 {[%emt 0:06:26]} 18. Bd5 {[%emt 0:01:55]} c4 {[%emt 0:05:56]} (18... Nfxd5 $11 19. exd5 c4) 19. Be3 $1 $16 {[%emt 0:05:30]} Qc8 {[%emt 0:09:41]} 20. Ra7 {[%emt 0:06:39]} Bd8 {[%emt 0:07:59]} 21. Ng5 {[%emt 0:06:02][%cal Bf3g5,Bg5h3,Bh3f2][%mdl 32] aiming for Bxf7+.} Nfxd5 {[%emt 0:05:16]} (21... Ncxd5 $11 {keeps the balance.} 22. exd5 Ra8) 22. exd5 {[%emt 0:00:07]} Qf5 {[%emt 0:00:24] Prevents Ne4.} 23. Nh3 {[%emt 0:07:31]} f6 {[%emt 0:05:05]} 24. f3 {[%emt 0:02:20]} Qc8 {[%emt 0:03:33]} 25. Nf2 {[%emt 0:01:05]} f5 {[%emt 0:00:28] Inhibits Ne4.} 26. f4 {[%emt 0:10:08] Hoping for fxe5.} e4 {[%emt 0:02:21]} 27. Qd2 {[%emt 0:02:15]} Bf6 {[%emt 0:04:12]} 28. g4 {[%emt 0:02:18]} Bh4 {[%emt 0:01:36]} (28... c3 $1 $14 29. Qd1 Bh4) 29. gxf5 $2 {[%emt 0:02:25] [#]} (29. g5 $16 {keeps the pressure on.}) 29... Rxf5 {[%emt 0:00:48]} (29... Rf7 $1 $17) 30. Rf1 {[%emt 0:02:12]} Nxd5 {[%emt 0:03:41]} 31. Nxe4 {[%emt 0:01:02]} Qxc6 {[%emt 0:01:31]} (31... Nxe3 $6 32. Qxe3 Qxc6 33. Qd4 $17) 32. Qg2 $1 {[%emt 0:01:55][%csl Ga7][%cal Rg2g7]} Be7 {[%emt 0:07:16]} 33. Bd4 {[%emt 0:01:49][%csl Gd4][%cal Rg2g7]} g6 {[%emt 0:03:24]} 34. Ng3 {[%emt 0:03:08]} Rf7 {[%emt 0:01:20]} 35. f5 {[%emt 0:01:07] Threatens to win with fxg6.} (35. Ne4 c3 36. Rd1 Qc4 $17) 35... Bf6 $40 {[%emt 0:03:27][%mdl 128] White needs to defend precisely.} 36. Bxf6 {[%emt 0:01:15]} Rxa7 {[%emt 0:00:14]} 37. fxg6 $2 {[%emt 0:00:33][%mdl 8192] Now White is beyond hope.} (37. Bd4 $1 $14 {keeps the upper hand.} Rg7 38. Nh5 Nxb4 39. Qg5 (39. Nxg7 Qxg2+ 40. Kxg2 Nxc2 $17) 39... Nxc2 40. Bxg7 Qb6+ 41. Rf2) 37... Qb6+ $19 {[%emt 0:00:42]} (37... Nxb4 {gets mated.} 38. gxh7+ Rxh7 39. Ne4+ Kf8 40. Qg6 Rf7 {[#]} 41. Be7+ $1 {[%mdl 512]} Ke8 42. Qxf7+ Kd7 43. Bxd6+ Kc8 44. Qf8+ Kb7 45. Qxb8+ Ka6 46. Ra1+) (37... hxg6 $2 38. Nf5 Qb6+ 39. Kh1 Nxf6 40. Qxg6+ Kh8 41. Qxf6+ Kh7 42. Qh6+ Kg8 43. Rg1+ Qxg1+ 44. Kxg1 $18) 38. Kh1 {[%emt 0:00:27]} Nxf6 {[%emt 0:01:31]} (38... Nxb4 {is a self mate.} 39. gxh7+ Rxh7 40. Nh5+ Kf8 41. Bg7+ Ke8 42. Qe4+ Kd8 43. Rf8+ Kd7 44. Rf7+ Kd8 45. Bf6+ Kc8 46. Qg4#) 39. gxh7+ $2 {[%emt 0:01:41]} (39. Rxf6 Qb7 40. gxh7+ Kh8 41. Qxb7 Rbxb7 42. Rxd6) 39... Nxh7 {[%emt 0:02:54] Black is clearly winning.} 40. Nf5+ {[%emt 0:01:26]} Kh8 {[%emt 0:00:08]} 41. Nh6 {[%emt 0:01:35]} Qd4 {[%emt 0:09:23]} 42. Qg6 {[%emt 0:10:42]} Qd5+ {[%emt 0:00:46]} 43. Kg1 {[%emt 0:00:07]} Rg7 {[%emt 0:00:13] Weighted Error Value: White=0.72/Black=0.13 (very precise)} 0-1

[Event "Czech Championship 2022"]
[Site "Usti nad Labem"]
[Date "2022.05.16"]
[Round "3.16"]
[White "Ocelak, Jakub"]
[Black "Smolik, Jachym"]
[Result "1/2-1/2"]
[ECO "B10"]
[WhiteElo "2060"]
[BlackElo "2272"]
[Annotator "TA"]
[PlyCount "81"]
[EventDate "2022.05.12"]
[EventType "swiss"]
[EventCountry "CZE"]
[SourceTitle "playchess.com"]
[Source "ChessBase"]
[SourceQuality "1"]
[TimeControl "40/5400+30:1800+30"]

{[%evp 9,81,0,0,-12,13,15,18,12,29,29,19,25,66,62,75,46,74,46,67,62,65,44,48,51,69,73,89,18,25,18,17,6,56,0,0,0,20,50,35,36,35,39,73,72,99,94,115,77,168,81,77,66,63,33,33,29,27,22,58,61,45,58,41,45,66,70,63,60,66,72,38,17,84,59]} 1. e4 {[%emt 0:00:18]} c6 {[%emt 0:00:33]} 2. Nf3 {[%emt 0:00:07]} d5 {[%emt 0:00:05]} 3. d3 {[%emt 0:00:04]} dxe4 {[%emt 0:00:06]} 4. dxe4 {[%emt 0:00:03]} Qxd1+ {[%emt 0:00:10]} 5. Kxd1 {[%emt 0:00:03]} Nf6 {[%emt 0:00:25]} 6. Nbd2 {[%emt 0:00:01] B10: Caro-Kann: 2 d3 and 2 c4.} Nbd7 {[%emt 0:00:26]} 7. Ne1 {[%emt 0:00:02]} Ng4 {[%emt 0:01:28]} 8. Nd3 {[%emt 0:00:15] The position is equal.} Nge5 {[%emt 0:01:51]} 9. Nxe5 {[%emt 0:00:23]} Nxe5 {[%emt 0:00:02]} 10. Nc4 {[%emt 0:00:01] [#]} Ng6 $146 {[%emt 0:19:26]} ({Predecessor:} 10... Nxc4 11. Bxc4 e5 12. Be3 f5 13. exf5 Bxf5 14. Kc1 Kd7 15. a4 Be7 16. a5 Kc7 {½-½ (45) Hering,H (2318)-Hitzegrad,J (2314) ICCF email 2019}) 11. Be3 {[%emt 0:14:41]} e5 {[%emt 0:01:01]} 12. a4 {[%emt 0:04:57]} b6 {[%emt 0:02:25]} 13. Be2 {[%emt 0:10:30]} f6 {[%emt 0:04:40]} 14. g3 {[%emt 0:04:01] Prevents Nf4. White is more active.} Bh3 {[%emt 0:12:12]} 15. f3 {[%emt 0:11:05]} O-O-O+ {[%emt 0:00:30]} 16. Kc1 {[%emt 0:01:44]} f5 {[%emt 0:10:34]} 17. exf5 {[%emt 0:04:56]} Bxf5 {[%emt 0:00:28]} 18. a5 {[%emt 0:10:47]} ({White should try} 18. h4 $16) 18... b5 $11 {[%emt 0:00:39]} 19. Nd2 {[%emt 0:00:08]} Kb8 {[%emt 0:03:35]} 20. Ne4 {[%emt 0:03:20]} Be7 {[%emt 0:07:53]} (20... Ne7 $11) 21. a6 {[%emt 0:12:11]} (21. c4 $14) 21... Nf8 $1 {[%emt 0:02:56][%cal Bg6f8,Bf8e6,Be6d4][%mdl 32]} 22. Nc5 {[%emt 0:04:06]} Bxc5 {[%emt 0:02:47]} 23. Bxc5 {[%emt 0:00:02]} Ne6 {[%emt 0:00:08]} 24. Be3 {[%emt 0:01:12]} Nd4 {[%emt 0:02:17]} 25. Bd1 {[%emt 0:00:39]} Be6 {[%emt 0:05:58]} 26. Re1 {[%emt 0:02:10]} Rhe8 {[%emt 0:01:06]} 27. Ra3 {[%emt 0:05:46]} Bd5 {[%emt 0:02:06]} 28. f4 {[%emt 0:01:36]} Ka8 {[%emt 0:03:05]} (28... Nf5 $16) 29. Bd2 {[%emt 0:05:24]} (29. Bf2 $18) 29... e4 {[%emt 0:01:41]} 30. Ba5 {[%emt 0:04:58]} Rb8 {[%emt 0:05:11]} 31. g4 {[%emt 0:00:00]} Nf3 {[%emt 0:03:07]} 32. Re2 {[%emt 0:00:00]} Rf8 {[%emt 0:01:34]} 33. f5 {[%emt 0:00:00]} g6 {[%emt 0:00:25]} 34. Bb4 {[%emt 0:00:26][%cal Ba5b4,Bb4d6,Bd6c5][%mdl 32] A strong pair of Bishops.} Rf7 {[%emt 0:00:07]} 35. fxg6 {[%emt 0:00:42]} hxg6 {[%emt 0:00:01]} 36. Rf2 {[%emt 0:00:41]} Rh8 {[%emt 0:01:21]} 37. Bd6 {[%emt 0:00:38] Prevents Rf4.} Rd8 {[%emt 0:01:47]} 38. Bc5 {[%emt 0:00:24]} Rfd7 {[%emt 0:00:41]} 39. Bxf3 {[%emt 0:00:47]} exf3 {[%emt 0:00:08]} 40. Re3 {[%emt 0:00:04]} Kb8 {[%emt 0:03:42]} (40... Be6 $1 $11 41. b4 Bxg4) 41. b3 {[%emt 0:04:21] Weighted Error Value: White=0.12 (very precise) /Black=0.17 (very precise)} 1/2-1/2

[Event "Czech Championship 2022"]
[Site "Usti nad Labem"]
[Date "2022.05.16"]
[Round "3.17"]
[White "Horak, Jiri"]
[Black "Krejci, Jan"]
[Result "0-1"]
[ECO "D02"]
[WhiteElo "2161"]
[BlackElo "2520"]
[Annotator "TA"]
[PlyCount "42"]
[EventDate "2022.05.12"]
[EventType "swiss"]
[EventCountry "CZE"]
[SourceTitle "playchess.com"]
[Source "ChessBase"]
[SourceQuality "1"]
[TimeControl "40/5400+30:1800+30"]

{[%evp 18,42,-94,-92,-79,-92,-100,-119,-121,-131,-138,-170,-150,-259,-259,-270,-279,-323,-329,-325,-326,-322,-325,-555,-426,-702,-685]} 1. d4 {[%emt 0:00:04]} Nf6 {[%emt 0:00:08]} 2. Nf3 {[%emt 0:00:15]} c5 {[%emt 0:00:11]} 3. g3 {[%emt 0:00:50]} cxd4 {[%emt 0:00:49]} 4. Nxd4 {[%emt 0:00:09]} e5 {[%emt 0:02:35]} 5. Nb3 {[%emt 0:01:04]} d5 {[%emt 0:01:40]} 6. Bg2 {[%emt 0:00:24]} Be7 {[%emt 0:04:01]} 7. O-O {[%emt 0:00:30]} O-O {[%emt 0:02:05]} 8. N1d2 {[%emt 0:06:02]} Nc6 {[%emt 0:02:18]} 9. Nf3 {[%emt 0:01:49]} h6 {[%emt 0:01:02]} 10. c3 {[%emt 0:00:41]} Bg4 {[%emt 0:01:19][%cal Bc8g4,Bg4e6,Be6h3][%mdl 32] D02: 1 d4 d5 2 Nf3 sidelines, including 2...Nf6 3 g3 and 2...Nf6 3 Bf4.} 11. Be3 {[%emt 0:02:31]} b6 {[%emt 0:05:48]} 12. h3 {[%emt 0:06:54]} Be6 {[%emt 0:00:59] [#] Black is better.} 13. Kh2 $146 {[%emt 0:07:36]} ({Predecessor:} 13. a4 Qc7 14. a5 Nxa5 15. Nxa5 bxa5 16. Qa4 Bd8 17. g4 Nd7 18. Rfd1 Rc8 19. Rd2 {0-1 (26) De Vos,C (2017)-Huhndorf,A (2234) Ghent 2018}) 13... Qc7 {[%emt 0:00:29]} 14. Qc2 {[%emt 0:03:25]} Rfe8 {[%emt 0:02:24]} 15. Nh4 {[%emt 0:01:28]} (15. Rad1 $17) 15... e4 $19 {[%emt 0:04:46]} 16. Bh1 {[%emt 0:08:22]} Qc8 {[%emt 0:02:56]} 17. Nd4 {[%emt 0:04:31]} Bxh3 {[%emt 0:02:17]} ({Wrong is} 17... Nxd4 $2 18. Bxd4 Bxh3 19. Ng2 $19) 18. Ng2 {[%emt 0:07:56]} ({Avoid the trap} 18. Nxc6 $2 Ng4+ 19. Kg1 Bxh4 $19) 18... Ng4+ {[%emt 0:01:18]} 19. Kg1 {[%emt 0:00:06]} Nxe3 {[%emt 0:01:45]} 20. fxe3 {[%emt 0:05:19] [#]} (20. Nxe3 {only move.} Nxd4 21. cxd4) 20... Bd6 {A strong pair of Bishops.} 21. Kh2 {[%emt 0:41:04]} (21. Nxc6 $142 Qxc6 22. Nf4 Bxf1 23. Rxf1) 21... Ne5 {[%emt 1:02:10] White did not feel at home in the position after the opening.  Weighted Error Value: White=0.59/Black=0.14 (very precise)} 0-1

[Event "Czech Championship 2022"]
[Site "Usti nad Labem"]
[Date "2022.05.16"]
[Round "3.18"]
[White "Kozak, Milos"]
[Black "Freisler, Pavel"]
[Result "0-1"]
[ECO "E04"]
[WhiteElo "2114"]
[BlackElo "2239"]
[Annotator "TA"]
[PlyCount "108"]
[EventDate "2022.05.12"]
[EventType "swiss"]
[EventCountry "CZE"]
[SourceTitle "playchess.com"]
[Source "ChessBase"]
[SourceQuality "1"]
[TimeControl "40/5400+30:1800+30"]

{[%evp 10,108,14,10,32,37,34,33,37,26,43,-2,0,-6,0,19,21,18,29,29,63,58,59,55,35,25,62,73,65,60,62,63,81,66,66,69,70,53,70,58,61,51,81,47,58,23,23,14,11,14,14,14,8,0,8,0,33,0,0,0,0,0,0,0,0,0,0,0,0,-29,0,0,0,0,0,0,0,0,0,-11,0,0,0,0,0,-15,0,-6,0,0,8,-22,0,0,0,-8,-11,-35,-38,-1847,-1859]} 1. d4 {[%emt 0:01:26]} Nf6 {[%emt 0:00:36]} 2. c4 {[%emt 0:00:37]} e6 {[%emt 0:00:37]} 3. g3 {[%emt 0:00:11]} d5 {[%emt 0:00:55]} 4. Nf3 {[%emt 0:00:12]} dxc4 {[%emt 0:00:18]} 5. Bg2 {[%emt 0:00:41]} Bb4+ {[%emt 0:01:18]} 6. Bd2 {[%emt 0:00:20]} c5 {[%emt 0:00:25] E04: Open Catalan: 5 Nf3.} 7. Bxb4 {[%emt 0:03:39]} cxb4 {[%emt 0:00:06]} 8. Ne5 {[%emt 0:05:10]} O-O {[%emt 0:00:15][%cal Ob8c6] White is slightly better.} 9. a3 {[%emt 0:18:33] is more profitable than 9.Nxc4 at the moment.} Nc6 {[%emt 0:01:18]} 10. Nxc6 {[%emt 0:02:59]} bxc6 {[%emt 0:00:01]} 11. axb4 {[%emt 0:05:33]} Qb6 {[%emt 0:03:13]} 12. O-O {[%emt 0:07:56] [#]} Rd8 $146 {[%emt 0:01:11]} ({Predecessor:} 12... Qxb4 13. Qc2 Rb8 14. Rc1 Qxb2 15. Qxb2 Rxb2 16. Bf3 e5 17. Na3 e4 18. Nxc4 Rb4 19. Bg2 Be6 20. Ne5 Rxd4 21. Nxc6 Rc4 22. Nxa7 {½-½ (22) Bareev,E (2634)-Grachev,B (2652) St Petersburg 2009}) 13. Qa4 {[%emt 0:02:25]} Nd5 {[%emt 0:16:40]} 14. Na3 {[%emt 0:04:56][%cal Bb1a3,Ba3c4,Bc4e5][%mdl 32]} c3 {[%emt 0:30:59]} 15. bxc3 {[%emt 0:06:21]} Nxc3 {[%emt 0:00:12]} 16. Qc2 {[%emt 0:00:07]} Nd5 {[%emt 0:03:51]} 17. Nc4 {[%emt 0:13:31]} Qxb4 {[%emt 0:12:55]} 18. Ne5 {[%emt 0:07:16]} Bd7 {[%emt 0:08:33]} 19. e3 {[%emt 0:01:14][%cal Be2e3,Be3e4][%mdl 1056] White has compensation.} Qd6 {[%emt 0:01:17]} 20. Ra5 {[%emt 0:02:41]} f6 {[%emt 0:04:32]} 21. Nc4 {[%emt 0:03:26]} Qc7 {[%emt 0:01:42]} 22. Rfa1 {[%emt 0:00:50]} Rdb8 {[%emt 0:00:43]} 23. e4 {[%emt 0:02:13]} Nb6 {[%emt 0:01:36]} 24. Ne3 {[%emt 0:00:25]} Qd6 {[%emt 0:01:37]} 25. Qc3 {[%emt 0:00:25]} ({Of course not} 25. Rxa7 Qxd4 26. Rxa8 Rxa8 27. Rxa8+ Nxa8 $15) 25... Rb7 {[%emt 0:00:53]} 26. h4 {[%emt 0:00:30]} Be8 {[%emt 0:00:50]} 27. Ra6 {[%emt 0:04:13]} Rd8 {[%emt 0:02:48]} 28. Rd1 {[%emt 0:00:09]} Qe7 {[%emt 0:01:05]} 29. Ra5 {[%emt 0:01:35]} h6 {[%emt 0:00:05]} 30. Kh2 {[%emt 0:00:32]} Kh8 {[%emt 0:00:03]} 31. Kg1 {[%emt 0:00:07]} Rbd7 {[%emt 0:01:10]} 32. Bh3 {[%emt 0:01:43]} Rd6 {[%emt 0:00:36]} 33. Qa3 {[%emt 0:00:42]} R6d7 {[%emt 0:00:32]} 34. Qc3 {[%emt 0:00:07]} Bg6 {[%emt 0:00:42]} 35. f3 {[%emt 0:01:56]} Bf7 {[%emt 0:00:53]} 36. Kh2 {[%emt 0:00:21]} Rd6 {[%emt 0:00:18]} 37. Qa3 {[%emt 0:00:45]} R6d7 {[%emt 0:00:10]} 38. Qc3 {[%emt 0:00:06]} Kg8 {[%emt 0:00:10]} 39. Raa1 {[%emt 0:01:36][%cal Ba5a1,Ba1c1,Bc1c2,Bc2d2][%mdl 32]} Kf8 {[%emt 0:00:12]} 40. Rac1 {[%emt 0:01:47]} Rd6 {[%emt 0:00:02]} 41. Rc2 {[%emt 0:10:06]} Qd7 {[%emt 0:07:36][%cal Rd6d4]} 42. Rcd2 {[%emt 0:02:01]} Kg8 {[%emt 0:03:48]} 43. Kg1 {[%emt 0:02:10]} Qb7 {[%emt 0:08:57]} 44. Qa5 {[%emt 0:05:37]} Qc7 {[%emt 0:01:51][%cal Oc6c5] Threatens to win with ...c5!} 45. Qc5 {[%emt 0:02:38]} R6d7 {[%emt 0:02:44]} 46. Kf2 {[%emt 0:00:22]} Qd6 {[%emt 0:01:06] [#] And now ...Qxc5 would win.} 47. Qa5 {[%emt 0:01:35]} Rc7 {[%emt 0:00:35]} 48. Rc2 {[%emt 0:00:54]} Rb8 {[%emt 0:01:50]} 49. f4 {[%emt 0:03:42]} Qe7 {[%emt 0:02:24]} 50. Rdc1 {[%emt 0:02:08]} Qd6 {[%emt 0:01:59]} 51. Rd1 {[%emt 0:00:26]} Qd8 {[%emt 0:00:41]} 52. Rcd2 {[%emt 0:00:36]} Rd7 {[%emt 0:03:02]} 53. Ke1 {[%emt 0:00:09]} Nc8 {[%emt 0:00:37]} 54. Bf1 $2 {[%emt 0:01:36][%mdl 8192] [#]} Qxa5 {[%emt 0:00:43] Weighted Error Value: White=0.21 (precise) /Black=0.07 (flawless)} 0-1